lending/lending_fUSD_20240731
["ID","MTS","AMOUNT","RATE_DAILY","PERIOD"]
[333719179,1722405266667,-229.329763,0.000449,30]
[333719180,1722405266690,-5018.58517067,0.000449,60]
[333719181,1722405266715,-184.25473058,0.000449,120]
[333719182,1722405266738,-1000.0,0.00044915,120]
[333719183,1722405267076,-2000.0,0.00044931,30]
[333719184,1722405267101,-1999.0,0.00044931,120]
[333719185,1722405267126,-1022.63,0.00044931,120]
[333719186,1722405267150,-2031.10119621,0.00044931,30]
[333719187,1722405267174,-1000.0,0.00044932,120]
[333719188,1722405267199,-1000.0,0.00044948,120]
[333719189,1722405267224,-1000.0,0.00044964,120]
[333719190,1722405267249,-1000.0,0.0004498,120]
[333719191,1722405267274,-1000.0,0.00044996,120]
[333719192,1722405267299,-1000.0,0.00044999,120]
[333719193,1722405267329,-50000.0,0.00045,35]
[333719194,1722405267356,-50000.0,0.00045,45]
[333719195,1722405267380,-2926.16526618,0.00045,120]
[333719196,1722405267404,-1525.36133647,0.00045,90]
[333719197,1722405267430,-880.42546318,0.00045,120]
[333719198,1722405267456,-469.07905593,0.00045,120]
[333719199,1722405267481,-2267.65503281,0.00045,60]
[333719200,1722405267506,-478.40759655,0.00045,90]
[333719201,1722405267531,-1004.3,0.00045,120]
[333719202,1722405267555,-544.23384152,0.00045,120]
[333719203,1722405267581,-2000.0,0.00045,90]
[333719204,1722405267606,-2000.0,0.00045,90]
[333719205,1722405267630,-2000.0,0.00045,90]
[333719206,1722405267658,-2000.0,0.00045,90]
[333719207,1722405267683,-2000.0,0.00045,90]
[333719208,1722405267707,-2000.0,0.00045,90]
[333719209,1722405267732,-2000.0,0.00045,90]
[333719210,1722405267757,-2000.0,0.00045,90]
[333719211,1722405267781,-2000.0,0.00045,90]
[333719212,1722405267805,-2000.0,0.00045,90]
[333719213,1722405267832,-2526.301307,0.00045,120]
[333719214,1722405267857,-150.0,0.00045,85]
[333719215,1722405267880,-1625.54479697,0.00045,45]
[333719216,1722405267905,-184.43839854,0.00045,30]
[333719217,1722405267931,-2043.20907127,0.00045,30]
[333719218,1722405267959,-680.93735946,0.00045,120]
[333719219,1722405267985,-1000000.0,0.00045,120]
[333719220,1722405268010,-1000000.0,0.00045,120]
[333719221,1722405268035,-1000000.0,0.00045,120]
[333719222,1722405268058,-468699.96541631,0.00045,120]
[333719223,1722405300140,171.955014,5e-05,2]
[333719224,1722405342489,13404.76272345,0.0003173,120]
[333719231,1722405544390,234.12829109,0.00027,120]
[333719234,1722405600918,304.34,8.551e-05,2]
[333719235,1722405612133,800.0,0.00026986,120]
[333719240,1722405719310,1968.9876,0.00031806,30]
[333719242,1722405779584,169.96,0.0001337,30]
[333719243,1722405845525,800.0,0.00026986,120]
[333719245,1722405912202,800.0,0.00026986,120]
[333719246,1722405963831,800.0,0.00026986,120]
[333719247,1722406038758,373.84359152,0.00027,120]
[333719248,1722406045646,150.0,0.00031808,30]
[333719249,1722406073330,289.12,8.491e-05,2]
[333719256,1722406137159,961.60302974,8.491e-05,2]
[333719257,1722406140064,2759.49894896,8.491e-05,2]
[333719258,1722406140099,4812.80593192,8.491e-05,2]
[333719259,1722406142614,790.38017243,8.491e-05,2]
[333719260,1722406142707,363.69508992,8.491e-05,2]
[333719261,1722406143144,155.11786335,8.491e-05,2]
[333719262,1722406147783,155.19797502,8.491e-05,2]
[333719263,1722406148149,871.50003279,8.491e-05,2]
[333719264,1722406149088,797.58813832,8.491e-05,2]
[333719265,1722406149751,291.34809509,8.491e-05,2]
[333719266,1722406150172,411.57531364,8.491e-05,2]
[333719271,1722406151106,376.87485103,8.491e-05,2]
[333719272,1722406151205,165.26068746,8.491e-05,2]
[333719273,1722406151395,685.17544516,8.491e-05,2]
[333719274,1722406151908,123.48040387,8.491e-05,2]
[333719275,1722406151932,35.44199096,8.491e-05,2]
[333719276,1722406152245,9964.55800904,8.491e-05,2]
[333719277,1722406152270,10000.0,8.491e-05,2]
[333719282,1722406213107,800.0,0.00026986,120]
[333719292,1722406233510,-300.0,8.49e-05,2]
[333719293,1722406233519,-401.31614247,8.491e-05,2]
[333719294,1722406233531,-8.21154846,8.491e-05,2]
[333719295,1722406233542,-18823.72838221,8.491e-05,2]
[333719296,1722406233551,-1370.0029794,8.491e-05,2]
[333719297,1722406233561,-155.16248784,8.491e-05,2]
[333719298,1722406233571,-363.69508992,8.491e-05,2]
[333719299,1722406233584,-420.0,9.339e-05,2]
[333719300,1722406233595,-1250.0,0.0001,2]
[333719301,1722406233605,-587.0,0.00010273,2]
[333719302,1722406233615,-301.96741643,0.00010292,2]
[333719303,1722406233626,-158.92239483,0.00010292,2]
[333719304,1722406233635,-961.13083766,0.00010292,2]
[333719305,1722406233646,-7566.70496635,0.00010292,2]
[333719306,1722406233656,-790.38017243,0.00010292,2]
[333719307,1722406233667,-291.34809509,0.00010292,2]
[333719308,1722406233677,-411.57531364,0.00010292,2]
[333719309,1722406233687,-871.50003279,0.00010292,2]
[333719310,1722406233698,-4004.91,0.00010438,2]
[333719311,1722406233708,-441.09,0.00010445,2]
[333719312,1722406233718,-1000.0,0.00010455,2]
[333719313,1722406233728,-150.286,0.00010617,2]
[333719314,1722406233739,-289.12,0.00010755,2]
[333719315,1722406233749,-150.0,0.00010813,2]
[333719316,1722406233758,-500.0,0.0001089,2]
[333719317,1722406233767,-500.0,0.0001089,2]
[333719318,1722406233777,-500.0,0.000109,2]
[333719319,1722406233786,-433.2501,0.000109,2]
[333719320,1722406233796,-72.21605705,0.000109,2]
[333719321,1722406235114,-211.69794295,0.000109,2]
[333719322,1722406235125,-431.96204805,0.000109,2]
[333719327,1722406238282,-74.83505195,0.000109,2]
[333719328,1722406238291,-1079.38,0.000109,2]
[333719329,1722406238301,-252.74,0.00010959,2]
[333719330,1722406238310,-250.0,0.00010959,2]
[333719331,1722406238319,-1137.69,0.00010999,2]
[333719332,1722406238330,-1137.69,0.00010999,2]
[333719333,1722406238339,-1137.69,0.00010999,2]
[333719334,1722406238348,-1137.69,0.00010999,2]
[333719335,1722406238358,-1137.69,0.00010999,2]
[333719336,1722406238369,-1137.69,0.00010999,2]
[333719337,1722406238379,-1137.69,0.00010999,2]
[333719338,1722406238388,-1137.69,0.00010999,2]
[333719339,1722406238397,-1137.69,0.00010999,2]
[333719340,1722406238408,-1137.69,0.00010999,2]
[333719341,1722406238418,-1137.69,0.00010999,2]
[333719342,1722406238428,-1137.69,0.00010999,2]
[333719343,1722406238441,-1137.69,0.00010999,2]
[333719344,1722406238454,-1137.69,0.00010999,2]
[333719345,1722406238463,-1137.69,0.00010999,2]
[333719346,1722406238473,-1137.69,0.00010999,2]
[333719347,1722406238483,-1137.69,0.00010999,2]
[333719348,1722406238492,-1137.69,0.00010999,2]
[333719349,1722406238503,-1137.69,0.00010999,2]
[333719350,1722406238512,-1137.69,0.00010999,2]
[333719351,1722406238522,-1137.69,0.00010999,2]
[333719352,1722406238531,-1137.69,0.00010999,2]
[333719353,1722406238541,-1137.69,0.00010999,2]
[333719354,1722406238550,-1137.91466017,0.00010999,2]
[333719355,1722406238559,-2000.0,0.00010999,2]
[333719356,1722406238569,-2218.71673771,0.00011,2]
[333719357,1722406238582,-595.61466055,0.00011,2]
[333719358,1722406238601,-534.02114835,0.00011,2]
[333719359,1722406238612,-3742.70217563,0.00011,2]
[333719360,1722406238628,-1356.00596654,0.00011,2]
[333719361,1722406238641,-4129.05699686,0.00011,2]
[333719362,1722406238656,-43108.30251922,0.00011,2]
[333719363,1722406238667,-360.86093302,0.00011,2]
[333719364,1722406238678,-851.33187589,0.00011,2]
[333719365,1722406238689,-500.0,0.00011,2]
[333719366,1722406238701,-2288.98433689,0.00011,2]
[333719367,1722406238712,-2871.12316,0.00011,2]
[333719368,1722406238727,-290.099993,0.00011,2]
[333719406,1722406240372,-6044.31198997,0.00011,2]
[333719407,1722406240383,-331.555,0.00011,2]
[333719408,1722406240395,-273.13003365,0.00011,2]
[333719409,1722406240413,-6607.62448381,0.00011,2]
[333719410,1722406240550,-602.74595961,0.00011,2]
[333719411,1722406240578,-3756.6679994,0.00011,2]
[333719412,1722406240690,-33986.2142719,0.00011,2]
[333719413,1722406240702,-9957.37085642,0.00011,2]
[333719414,1722406240711,-17927.02914358,0.00011,2]
[333719433,1722406243403,-158.92239483,8.491e-05,2]
[333719435,1722406243413,-213.30456991,0.000109,2]
[333719437,1722406243424,-333.26219484,0.000109,2]
[333719445,1722406243715,-1445.64609236,0.000109,2]
[333719448,1722406243748,-661959.30569862,0.00011,2]
[333719454,1722406243800,-70120.11062351,0.00011,2]
[333719612,1722406246408,-8324.25442278,0.000109,2]
[333719613,1722406246417,-61377.46534848,0.00011,2]
[333719614,1722406246428,-31098.72562655,0.00011,2]
[333719615,1722406246439,-3063.31053378,0.00011,2]
[333719616,1722406246450,-1654.54999999,0.00011,2]
[333719617,1722406246538,-6668.85107942,0.00011,2]
[333719618,1722406246549,-4535.05064,0.00011,2]
[333719619,1722406246560,-1908.67282536,0.00011,2]
[333719620,1722406246575,-2923.5423352,0.00011,2]
[333719621,1722406246701,-91415.93984333,0.00011,2]
[333719622,1722406248055,-694.57237621,0.00011,2]
[333719623,1722406248369,-178028.11601674,0.00011,2]
[333719626,1722406271914,800.0,0.00026986,120]
[333719627,1722406294913,369.07,0.0001337,30]
[333720033,1722406452095,800.0,0.00026986,120]
[333720034,1722406571158,800.0,0.00026986,120]
[333720035,1722406682862,800.0,0.00026986,120]
[333720036,1722406749248,800.0,0.00026986,120]
[333720037,1722406778328,338.31,0.0001337,30]
[333720038,1722406802399,1000.0,0.00031795,30]
[333720039,1722406825594,5000.0,0.00031795,30]
[333720040,1722407119125,5000.0,0.00027,120]
[333720047,1722407344101,800.0,0.00026986,120]
[333720049,1722407358798,1000.0,0.00031795,30]
[333720050,1722407365424,1000.0,0.00031795,30]
[333720051,1722407371791,1000.0,0.00031795,30]
[333720052,1722407380534,1000.0,0.00031795,30]
[333720053,1722407388955,1000.0,0.00031795,30]
[333720054,1722407394517,1000.0,0.00031795,30]
[333720055,1722407407096,833.424022,0.00031795,30]
[333720080,1722407432851,-274.66,8.219e-05,2]
[333720081,1722407432860,-800.0,0.00010001,2]
[333720082,1722407432873,-200.0,0.00010391,2]
[333720083,1722407432883,-274.66,0.00010475,2]
[333720084,1722407432892,-178.74,0.00010536,2]
[333720085,1722407432902,-633.03266898,0.0001065,2]
[333720086,1722407432912,-337.0,0.00010692,2]
[333720087,1722407432921,-300.0,0.00010699,2]
[333720088,1722407432931,-150.0,0.00010699,2]
[333720089,1722407432941,-33820.31515302,0.000107,2]
[333720090,1722407432955,-308.06435349,0.000107,2]
[333720091,1722407432993,-9373.62049349,0.000107,2]
[333720092,1722407433002,-612.15365749,0.000107,2]
[333720096,1722407433711,-491.16002104,0.000107,2]
[333720097,1722407433723,-1146.74642147,0.000107,2]
[333720098,1722407433732,-16.44437853,0.000108,2]
[333720099,1722407433747,-6033.3610252,0.000108,2]
[333720105,1722407438455,-314.2329566,0.000108,2]
[333720106,1722407438500,-28519.78604438,0.000108,2]
[333720107,1722407438631,-4013.03069,0.000108,2]
[333720108,1722407438855,-1668.95639803,0.000108,2]
[333720111,1722407438870,-1604.14295,0.000108,2]
[333720123,1722407439804,-13307.2,0.000108,2]
[333720124,1722407439938,-5639.9984921,0.000108,2]
[333720125,1722407439950,-332.185,0.000108,2]
[333720146,1722407443017,-1966.05217549,0.000108,2]
[333720148,1722407443029,-1747.35,0.000108,2]
[333720153,1722407443150,-3008.72418128,0.000108,2]
[333720154,1722407443162,-4070.80487874,0.000108,2]
[333720160,1722407446572,-670.56,0.000108,2]
[333720161,1722407446592,-1673.12476474,0.000108,2]
[333720162,1722407446603,-830.0,0.000108,2]
[333720163,1722407452687,523.82,0.0001337,30]
[333720173,1722407581960,862.28,0.00031795,30]
[333720186,1722408055889,480.16,0.0001337,30]
[333720187,1722408132692,800.0,0.00026986,120]
[333720188,1722408227685,-217.56,0.000178,30]
[333720189,1722408227716,-480.16,0.00018351,30]
[333720190,1722408227776,-480.16,0.00023332,30]
[333720191,1722408227835,-664.82688244,0.00026901,30]
[333720192,1722408227871,-294.73931004,0.0002739,30]
[333720193,1722408227902,-212.8211521,0.00027397,60]
[333720194,1722408227932,-4000.0,0.00027397,30]
[333720195,1722408227964,-500.0,0.0002745,30]
[333720196,1722408227994,-500.0,0.0002745,30]
[333720197,1722408228024,-500.0,0.0002745,30]
[333720198,1722408228053,-500.0,0.0002745,30]
[333720199,1722408228088,-500.0,0.0002745,30]
[333720200,1722408228388,-500.0,0.0002745,30]
[333720201,1722408228424,-500.0,0.0002745,30]
[333720202,1722408228458,-500.0,0.0002745,30]
[333720203,1722408228490,-500.0,0.0002745,30]
[333720204,1722408228523,-500.0,0.0002745,30]
[333720205,1722408228554,-500.0,0.0002745,30]
[333720206,1722408228586,-500.0,0.0002745,30]
[333720207,1722408228617,-500.0,0.0002745,30]
[333720208,1722408228647,-500.0,0.0002745,30]
[333720209,1722408228679,-500.0,0.0002745,30]
[333720210,1722408228710,-500.0,0.0002745,30]
[333720211,1722408228741,-642.44977414,0.0002745,30]
[333720212,1722408228773,-500.0,0.00027862,30]
[333720213,1722408228819,-500.0,0.0002828,30]
[333720214,1722408228854,-480.16,0.00028314,30]
[333720215,1722408228889,-500.0,0.00028704,30]
[333720216,1722408228924,-1208.0,0.00029054,30]
[333720217,1722408228956,-500.0,0.00029134,30]
[333720218,1722408228991,-500.0,0.00029571,30]
[333720219,1722408229029,-387.22455129,0.0003,30]
[333720220,1722408229062,-500.0,0.00030015,30]
[333720221,1722408229098,-500.0,0.00030465,30]
[333720222,1722408229135,-451.02473326,0.00030922,30]
[333720223,1722408229170,-10500.0,0.00031,30]
[333720224,1722408229204,-5000.0,0.00031,30]
[333720225,1722408229240,-153.59165,0.000316,120]
[333720226,1722408229276,-1000.0,0.00031795,30]
[333720227,1722408229307,-264.01287842,0.00031795,50]
[333720228,1722408229353,-1206.9723338,0.00031885,60]
[333720229,1722408229389,-2718.0,0.000327,35]
[333720230,1722408229422,-1109.9667389,0.000329,30]
[333720231,1722408229453,-500.0,0.00033,30]
[333720232,1722408229486,-3579.08,0.00033151,120]
[333720233,1722408229520,-480.16,0.00033295,30]
[333720234,1722408229553,-35000.0,0.00034,120]
[333720235,1722408229590,-1991.64059415,0.00035,30]
[333720236,1722408229624,-2990.9,0.00036114,54]
[333720237,1722408229659,-213.0,0.0003816,30]
[333720238,1722408229694,-155.84,0.000382,31]
[333720239,1722408229729,-155.84,0.000382,31]
[333720240,1722408229762,-155.84,0.000382,31]
[333720241,1722408229794,-480.16,0.00038276,30]
[333720242,1722408229826,-500.0,0.00039,120]
[333720243,1722408229857,-205.04930933,0.00039241,60]
[333720244,1722408229888,-3262.79,0.00039529,74]
[333720245,1722408229920,-500.0,0.00039863,120]
[333720246,1722408229952,-213.0,0.0003987,30]
[333720247,1722408229983,-2234.409002,0.000399,120]
[333720248,1722408230015,-485.18437297,0.0004,30]
[333720249,1722408230046,-45730.36507763,0.0004,30]
[333720250,1722408230077,-1027.61,0.0004,120]
[333720251,1722408230112,-3817.45,0.0004,120]
[333720252,1722408230142,-592.19173153,0.00040131,30]
[333720253,1722408230174,-150.0,0.000405,30]
[333720254,1722408230207,-1503.7978576,0.00041,120]
[333720255,1722408230237,-214.33572,0.00041,30]
[333720256,1722408230269,-150.0,0.000415,30]
[333720257,1722408230299,-213.0,0.0004158,30]
[333720258,1722408230329,-800.0,0.00041712,30]
[333720259,1722408230360,-1100.0,0.00041712,30]
[333720260,1722408230391,-1800.0,0.00041712,30]
[333720261,1722408230421,-4400.0,0.00041712,30]
[333720262,1722408230452,-5300.0,0.00041712,30]
[333720263,1722408230483,-150.0,0.00042,30]
[333720264,1722408230513,-800.0,0.0004226,30]
[333720265,1722408230542,-1100.0,0.0004226,30]
[333720266,1722408230572,-1800.0,0.0004226,30]
[333720267,1722408230601,-4400.0,0.0004226,30]
[333720268,1722408230631,-5300.0,0.0004226,30]
[333720269,1722408230661,-150.0,0.000425,30]
[333720270,1722408230690,-793.0,0.0004275,30]
[333720271,1722408230719,-800.0,0.00042808,30]
[333720272,1722408230749,-1100.0,0.00042808,30]
[333720273,1722408230779,-1800.0,0.00042808,30]
[333720274,1722408230808,-4400.0,0.00042808,30]
[333720275,1722408230839,-5300.0,0.00042808,30]
[333720276,1722408230869,-3533.4,0.00042943,94]
[333720277,1722408230898,-150.0,0.00043,30]
[333720278,1722408230929,-480.16,0.00043258,120]
[333720279,1722408230958,-213.0,0.0004329,30]
[333720280,1722408230987,-800.0,0.00043356,30]
[333720281,1722408231017,-1100.0,0.00043356,30]
[333720282,1722408231047,-1800.0,0.00043356,30]
[333720283,1722408231078,-4400.0,0.00043356,30]
[333720284,1722408231111,-5300.0,0.00043356,30]
[333720285,1722408231141,-150.0,0.000435,30]
[333720286,1722408231173,-706.00945,0.00043688,30]
[333720287,1722408231219,-1999.0,0.00043835,120]
[333720288,1722408231276,-809.59,0.00043835,120]
[333720289,1722408231313,-500.0,0.00043835,120]
[333720290,1722408231347,-500.0,0.00043835,120]
[333720291,1722408231377,-500.0,0.00043835,120]
[333720292,1722408231406,-500.0,0.00043835,120]
[333720293,1722408231437,-500.0,0.00043835,120]
[333720294,1722408231468,-500.0,0.00043835,120]
[333720295,1722408231499,-500.0,0.00043835,120]
[333720296,1722408231529,-500.0,0.00043835,120]
[333720297,1722408231559,-500.0,0.00043835,120]
[333720298,1722408231590,-502.99996804,0.00043835,120]
[333720299,1722408231619,-500.0,0.00043835,120]
[333720300,1722408231878,-1012.07,0.00043835,120]
[333720301,1722408231909,-500.0,0.00043835,120]
[333720302,1722408231939,-500.0,0.00043835,120]
[333720303,1722408231968,-512.90236839,0.00043835,120]
[333720304,1722408231998,-508.03928432,0.00043835,120]
[333720305,1722408232028,-567.6990559,0.00043835,120]
[333720306,1722408232059,-500.0,0.00043835,120]
[333720307,1722408232093,-500.0,0.00043835,120]
[333720308,1722408232123,-500.0,0.00043835,120]
[333720309,1722408232154,-749.06,0.00043835,120]
[333720310,1722408232186,-633.09637836,0.00043835,120]
[333720311,1722408232218,-500.0,0.00043835,120]
[333720312,1722408232249,-518.28445635,0.00043835,120]
[333720313,1722408232280,-1080.35,0.00043835,120]
[333720314,1722408232311,-500.0,0.00043835,120]
[333720315,1722408232343,-500.0,0.00043835,120]
[333720316,1722408232373,-500.0,0.00043835,120]
[333720317,1722408232403,-500.0,0.00043835,120]
[333720318,1722408232433,-645.05906599,0.00043835,120]
[333720319,1722408232463,-314.68771666,0.00043835,120]
[333720320,1722408232493,-500.0,0.00043835,120]
[333720321,1722408232522,-500.0,0.00043835,120]
[333720322,1722408232554,-500.0,0.00043835,120]
[333720323,1722408232585,-500.0,0.00043835,120]
[333720324,1722408232616,-360.98085572,0.00043835,120]
[333720325,1722408232646,-500.0,0.00043835,120]
[333720326,1722408232678,-500.0,0.00043835,120]
[333720327,1722408232711,-500.0,0.00043835,120]
[333720328,1722408232742,-500.0,0.00043835,120]
[333720329,1722408232772,-500.0,0.00043835,120]
[333720330,1722408232804,-500.0,0.00043835,120]
[333720331,1722408232835,-500.0,0.00043835,120]
[333720332,1722408232866,-634.24010712,0.00043835,120]
[333720333,1722408232896,-500.0,0.00043835,120]
[333720334,1722408232927,-500.0,0.00043835,120]
[333720335,1722408232957,-500.0,0.00043835,120]
[333720336,1722408232987,-503.33201208,0.00043835,120]
[333720337,1722408233018,-892.88,0.00043835,120]
[333720338,1722408233050,-500.0,0.00043835,120]
[333720339,1722408233080,-273.72641214,0.00043835,120]
[333720340,1722408233115,-500.0,0.00043835,120]
[333720341,1722408233145,-524.98,0.00043835,120]
[333720342,1722408233176,-500.0,0.00043835,120]
[333720343,1722408233209,-601.25,0.00043835,120]
[333720344,1722408233242,-500.0,0.00043835,120]
[333720345,1722408233274,-555.89017176,0.00043835,120]
[333720346,1722408233305,-511.59330324,0.00043835,120]
[333720347,1722408233336,-500.0,0.00043835,120]
[333720348,1722408233369,-500.0,0.00043835,120]
[333720349,1722408233398,-500.0,0.00043835,120]
[333720350,1722408233428,-500.0,0.00043835,120]
[333720351,1722408233458,-500.0,0.00043835,120]
[333720352,1722408233490,-500.0,0.00043835,120]
[333720353,1722408233520,-514.199152,0.00043835,120]
[333720354,1722408233550,-500.0,0.00043835,120]
[333720355,1722408233580,-500.0,0.00043835,120]
[333720356,1722408233610,-524.0136692,0.00043835,120]
[333720357,1722408233638,-500.0,0.00043835,120]
[333720358,1722408233667,-500.0,0.00043835,120]
[333720359,1722408233696,-500.0,0.00043835,120]
[333720360,1722408233725,-777.39,0.00043835,120]
[333720361,1722408233755,-500.0,0.00043835,120]
[333720362,1722408233784,-508.16715726,0.00043835,120]
[333720363,1722408233813,-601.92,0.00043835,120]
[333720364,1722408233844,-525.51,0.00043835,120]
[333720365,1722408233872,-502.01233773,0.00043835,120]
[333720366,1722408233901,-500.0,0.00043835,120]
[333720367,1722408233930,-1956.03,0.00043835,120]
[333720368,1722408233959,-500.0,0.00043835,120]
[333720369,1722408233988,-500.0,0.00043835,120]
[333720370,1722408234017,-500.0,0.00043835,120]
[333720371,1722408234046,-500.0,0.00043835,120]
[333720372,1722408234076,-2418.8,0.00043835,120]
[333720373,1722408234107,-500.0,0.00043835,120]
[333720374,1722408234136,-500.0,0.00043835,120]
[333720375,1722408234166,-500.0,0.00043835,120]
[333720376,1722408234196,-500.0,0.00043835,120]
[333720377,1722408234226,-536.12586718,0.00043835,120]
[333720378,1722408234256,-500.0,0.00043835,120]
[333720379,1722408234286,-500.0,0.00043835,120]
[333720380,1722408234317,-500.0,0.00043835,120]
[333720381,1722408234348,-974.15,0.00043835,120]
[333720382,1722408234378,-500.0,0.00043835,120]
[333720383,1722408234408,-1315.36,0.00043835,120]
[333720384,1722408234438,-500.0,0.00043835,120]
[333720385,1722408234469,-537.39,0.00043835,120]
[333720386,1722408234499,-500.0,0.00043835,120]
[333720387,1722408234528,-1485.9,0.00043835,120]
[333720388,1722408234559,-834.44,0.00043835,120]
[333720389,1722408234592,-571.25,0.00043835,120]
[333720390,1722408234621,-500.0,0.00043835,120]
[333720391,1722408234652,-500.0,0.00043835,120]
[333720392,1722408234682,-500.0,0.00043835,120]
[333720393,1722408234712,-500.0,0.00043835,120]
[333720394,1722408234743,-500.0,0.00043835,120]
[333720395,1722408234774,-1001.53,0.00043835,120]
[333720396,1722408234804,-500.0,0.00043835,120]
[333720397,1722408234834,-500.0,0.00043835,120]
[333720398,1722408234865,-990.69,0.00043835,120]
[333720399,1722408234895,-500.0,0.00043835,120]
[333720400,1722408234926,-500.0,0.00043835,120]
[333720401,1722408234956,-1167.38,0.00043835,120]
[333720402,1722408234988,-1459.65,0.00043835,120]
[333720403,1722408235019,-500.0,0.00043835,120]
[333720404,1722408235049,-500.0,0.00043835,120]
[333720405,1722408235085,-500.0,0.00043835,120]
[333720406,1722408235348,-518.94385561,0.00043835,120]
[333720407,1722408235379,-506.24684523,0.00043835,120]
[333720408,1722408235409,-499.96853198,0.00043835,120]
[333720409,1722408235442,-500.0,0.00043835,120]
[333720410,1722408235474,-500.0,0.00043835,120]
[333720411,1722408235504,-804.86,0.00043835,120]
[333720412,1722408235534,-500.0,0.00043835,120]
[333720413,1722408235565,-500.9042381,0.00043835,120]
[333720414,1722408235597,-1591.08,0.00043835,120]
[333720415,1722408235628,-500.0,0.00043835,120]
[333720416,1722408235658,-504.68976787,0.00043835,120]
[333720417,1722408235687,-500.0,0.00043835,120]
[333720418,1722408235720,-762.19,0.00043835,120]
[333720419,1722408235750,-500.0,0.00043835,120]
[333720420,1722408235780,-548.29,0.00043835,120]
[333720421,1722408235811,-647.54,0.00043835,120]
[333720422,1722408235841,-500.0,0.00043835,120]
[333720423,1722408235870,-500.0,0.00043835,120]
[333720424,1722408235900,-500.0,0.00043835,120]
[333720425,1722408235931,-500.0,0.00043835,120]
[333720426,1722408235961,-500.0,0.00043835,120]
[333720427,1722408235991,-500.0,0.00043835,120]
[333720428,1722408236021,-500.0,0.00043835,120]
[333720429,1722408236051,-500.0,0.00043835,120]
[333720430,1722408236082,-1601.94,0.00043835,120]
[333720431,1722408236118,-639.66,0.00043835,120]
[333720432,1722408236151,-808.73,0.00043835,120]
[333720433,1722408236184,-513.54811093,0.00043835,120]
[333720434,1722408236216,-544.46,0.00043835,120]
[333720435,1722408236248,-227.85700311,0.00043835,120]
[333720436,1722408236280,-1015.61,0.00043835,120]
[333720437,1722408236313,-500.0,0.00043835,120]
[333720438,1722408236346,-200.61949462,0.00043835,120]
[333720439,1722408236379,-500.0,0.00043835,120]
[333720440,1722408236411,-500.0,0.00043835,30]
[333720441,1722408236443,-500.0,0.00043835,120]
[333720442,1722408236475,-2194.78,0.00043835,120]
[333720443,1722408236507,-608.97,0.00043835,120]
[333720444,1722408236538,-500.0,0.00043835,120]
[333720445,1722408236568,-500.0,0.00043835,120]
[333720446,1722408236601,-500.0,0.00043835,120]
[333720447,1722408236632,-1402.78,0.00043835,120]
[333720448,1722408236662,-500.0,0.00043835,120]
[333720449,1722408236693,-1191.54,0.00043835,120]
[333720450,1722408236722,-500.0,0.00043835,120]
[333720451,1722408236751,-500.0,0.00043835,120]
[333720452,1722408236780,-500.0,0.00043835,120]
[333720453,1722408236810,-500.0,0.00043835,120]
[333720454,1722408236840,-500.0,0.00043835,120]
[333720455,1722408236870,-500.0,0.00043835,120]
[333720456,1722408236899,-500.0,0.00043835,120]
[333720457,1722408236929,-548.11,0.00043835,120]